bitfinex-derivatives/quotes_SOLF0:USTF0_20250413
["timestamp","ask_amount","ask_price","bid_price","bid_amount"]
[1744549455191,0.05282077,129.88,129.86,0.04908065]
[1744549455392,29.36,129.87,129.86,0.04908065]
[1744549455694,37.0621,129.87,129.86,0.04908065]
[1744549456393,29.36,129.87,129.86,0.04908065]
[1744549457097,37.0621,129.87,129.86,0.04908065]
[1744549463499,7.7044,129.84,129.8,2.118]
[1744549463797,387.12,129.92,129.79,4.065]
[1744549463798,29.38,129.83,129.79,4.065]
[1744549464199,37.0848,129.83,129.8,7.706]
[1744549464497,37.0848,129.83,129.79,4.065]
[1744549464498,29.38,129.83,129.79,4.065]
[1744549464699,7.7052,129.82,129.8,0.05219881]
[1744549465698,7.7051,129.82,129.8,0.05219881]
[1744549465898,29.43590309,129.83,129.8,0.05219881]
[1744549466199,37.14080309,129.83,129.8,7.75839881]
[1744549467201,29.43590309,129.83,129.81,7.7054]
[1744549467802,37.14040309,129.83,129.81,7.7054]
[1744549468103,37.14040309,129.83,129.8,7.75819881]
[1744549469302,7.7052,129.82,129.8,0.05219881]
[1744549469895,7.7057,129.81,129.8,0.05219881]
[1744549470103,29.43590309,129.83,129.75,31.4803]
[1744549470295,29.43590309,129.83,129.75,2.1003]
[1744549470501,7.7063,129.8,129.77,7.7076]
[1744549470702,37.0863,129.8,129.77,7.7076]
[1744549471198,29.38,129.8,129.78,7.7074]
[1744549471498,0.05711175,129.8,129.77,0.05067356]
[1744549472198,29.43711175,129.8,129.77,0.05067356]
[1744549472405,7.7073,129.79,129.77,0.05067356]
[1744549472606,29.43711175,129.8,129.77,0.05067356]
[1744549473107,7.7075,129.78,129.77,0.05067356]
[1744549479006,7.7109,129.73,129.7,7.7119]
[1744549479511,7.711,129.72,129.7,7.7119]
[1744549479708,7.711,129.72,129.69,7.7125]
[1744549480007,29.38,129.75,129.66,31.514]
[1744549480212,0.05169599,129.72,129.69,7.77189225]
[1744549480711,7.76299599,129.72,129.69,7.77189225]
[1744549482212,7.7116,129.71,129.69,0.05909225]
[1744549482912,7.76299599,129.72,129.69,0.05909225]
[1744549483222,0.05169599,129.72,129.69,0.05909225]
[1744549484722,0.05169599,129.72,129.7,7.7121]
[1744549485122,0.05169599,129.72,129.69,0.05909225]
[1744549485625,7.7118,129.71,129.69,0.05909225]
[1744549485823,0.05169599,129.72,129.69,0.05909225]
[1744549486124,29.43169599,129.72,129.69,0.05909225]
[1744549487227,7.7116,129.71,129.69,0.05909225]
[1744549488715,7.7122,129.7,129.69,0.05909225]
[1744549490326,7.714,129.67,129.66,2.134]
[1744549490626,29.4,129.68,129.63,4.0662]
[1744549490828,7.7149,129.66,129.63,4.0662]
[1744549491023,7.7149,129.66,129.63,11.7823]
[1744549491327,29.4,129.68,129.63,11.7823]
[1744549491527,7.76536737,129.66,129.63,11.83588266]
[1744549491827,0.05036737,129.66,129.63,4.11978266]
[1744549492223,7.7153,129.65,129.63,4.11978266]
[1744549492528,0.05036737,129.66,129.63,2.01818266]
[1744549492730,29.4,129.65,129.63,0.05358266]
[1744549493029,7.7158,129.64,129.63,0.05358266]
[1744549494128,29.4,129.65,129.57,13.8815]
[1744549495031,7.7181,129.61,129.58,7.719]
[1744549495328,37.1181,129.61,129.6,0.05765608]
[1744549496122,29.4,129.61,129.51,31.5477]
[1744549496325,29.4,129.61,129.51,35.6733]
[1744549496630,29.4,129.61,129.52,7.7226]
[1744549496929,29.4,129.61,129.51,6.2733]
[1744549497125,29.4,129.61,129.52,7.7228]
[1744549497325,0.05337978,129.57,129.55,0.04464616]
[1744549497533,29.4,129.56,129.55,0.04464616]
[1744549497726,7.7217,129.54,129.51,11.8489]
[1744549497926,29.4,129.56,129.51,11.8489]
[1744549498333,7.7215,129.55,129.52,7.7229]
[1744549498832,29.4,129.55,129.53,7.7223]
[1744549499029,29.45235215,129.55,129.53,7.7223]
[1744549499627,29.45235215,129.55,129.52,7.7227]
[1744549500035,29.45235215,129.55,129.51,4.1256]
[1744549500235,29.45235215,129.55,129.52,7.7225]
[1744549500435,37.17355215,129.55,129.52,7.7225]
[1744549500631,29.45235215,129.55,129.52,7.7225]
[1744549500838,0.05235215,129.55,129.51,4.1256]
[1744549501338,0.05235215,129.55,129.52,7.7225]
[1744549501538,0.05235215,129.55,129.51,4.1256]
[1744549502041,0.05235215,129.55,129.52,7.7225]
[1744549502640,29.42,129.54,129.48,1.9675]
[1744549502843,29.42,129.54,129.49,3.9848]
[1744549503038,29.42,129.54,129.52,7.7226]
[1744549503237,0.04935677,129.53,129.49,3.9848]
[1744549503639,0.04935677,129.53,129.51,7.7232]
[1744549505339,0.04935677,129.53,129.52,7.7229]
[1744549508647,0.04935677,129.53,129.51,7.7233]
[1744549508945,0.04935677,129.53,129.49,3.9848]
[1744549509147,0.04935677,129.53,129.51,7.723]
[1744549509544,0.04935677,129.53,129.49,3.9848]
[1744549510240,0.04935677,129.53,129.5,7.724]
[1744549510543,0.04935677,129.53,129.49,3.9848]
[1744549510844,0.04935677,129.53,129.51,7.7234]
[1744549511347,0.04935677,129.53,129.5,7.7239]
[1744549511535,0.04935677,129.53,129.49,3.9848]
[1744549511939,0.04935677,129.53,129.47,7.7257]
[1744549511940,7.724,129.51,129.47,7.7257]
[1744549512246,29.42,129.51,129.44,6.0458]
[1744549512441,7.7255,129.48,129.44,13.773]
[1744549512641,37.1455,129.48,129.44,6.0458]
[1744549513242,0.05716468,129.47,129.44,6.0458]
[1744549513448,29.42,129.51,129.44,6.0458]
[1744549513643,29.42,129.54,129.45,29.42]
[1744549513847,37.1421,129.54,129.45,29.42]
[1744549514549,0.05726727,129.51,129.48,0.05035957]
[1744549514753,29.42,129.54,129.48,0.05035957]
[1744549514954,29.42,129.54,129.48,29.49035957]
[1744549515147,7.7207,129.56,129.49,2.1405]
[1744549515650,7.7207,129.56,129.52,7.7227]
[1744549515850,0.05200801,129.54,129.52,7.7227]
[1744549516053,0.05200801,129.54,129.51,0.05345919]
[1744549516553,29.49200801,129.54,129.51,0.05345919]
[1744549516753,37.21420801,129.54,129.51,0.05345919]
[1744549517051,29.49200801,129.54,129.51,0.05345919]
[1744549517245,7.7229,129.52,129.51,0.05345919]
[1744549517447,29.49200801,129.54,129.46,7.7261]
[1744549517655,29.44,129.53,129.42,33.562]
[1744549517852,7.7247,129.49,129.46,7.7261]
[1744549518042,29.44,129.5,129.42,33.562]
[1744549518248,29.44,129.49,129.42,33.562]
[1744549518448,29.44,129.48,129.42,4.122]
[1744549518754,29.44,129.47,129.42,4.122]
[1744549518949,0.05295326,129.46,129.44,0.05678545]
[1744549520352,0.05295326,129.46,129.44,7.78448545]
[1744549520756,0.05295326,129.46,129.44,0.05678545]
[1744549520949,0.05295326,129.46,129.45,7.7271]
[1744549521550,0.05295326,129.46,129.44,0.05678545]
[1744549521756,29.44,129.51,129.44,0.05678545]
[1744549521952,7.7251,129.49,129.42,33.562]
[1744549522253,29.44,129.51,129.42,33.562]
[1744549522950,29.44,129.54,129.45,0.05605967]
[1744549523150,7.723,129.52,129.45,29.49605967]
[1744549523555,7.723,129.52,129.48,7.7249]
[1744549523847,364.0,129.56,129.45,29.44]
[1744549524053,29.44,129.55,129.45,29.44]
[1744549524555,0.05210379,129.51,129.49,0.05929145]
[1744549524853,0.05210379,129.51,129.49,7.78369145]
[1744549525854,0.05210379,129.51,129.49,0.05929145]
[1744549526356,7.77590379,129.51,129.49,0.05929145]
[1744549526851,7.77590379,129.51,129.49,7.78389145]
[1744549527059,0.05210379,129.51,129.49,0.05929145]
[1744549527454,0.05210379,129.51,129.5,7.7241]
[1744549527658,0.05210379,129.51,129.49,0.05929145]
[1744549528058,7.7241,129.5,129.49,0.05929145]
[1744549528460,0.05210379,129.51,129.49,0.05929145]
[1744549529359,0.05210379,129.51,129.5,7.7241]
[1744549530358,0.05210379,129.51,129.49,7.78379145]
[1744549530560,7.77570379,129.51,129.49,0.05929145]
[1744549531059,0.05210379,129.51,129.49,0.05929145]
[1744549531961,0.05210379,129.51,129.49,7.78369145]
[1744549533160,0.05210379,129.51,129.49,0.05929145]
[1744549533663,7.7241,129.5,129.49,0.05929145]
[1744549533858,0.05210379,129.51,129.49,0.05929145]
[1744549534359,7.77590379,129.51,129.49,0.05929145]
[1744549534963,0.05210379,129.51,129.49,0.05929145]
[1744549535462,7.77570379,129.51,129.49,0.05929145]
[1744549536559,7.7241,129.5,129.49,0.05929145]
[1744549539061,0.05210379,129.51,129.49,0.05929145]
[1744549540066,7.77590379,129.51,129.49,0.05929145]
[1744549540767,0.05210379,129.51,129.49,7.78399145]
[1744549541169,0.05210379,129.51,129.49,0.05929145]
[1744549541468,7.7241,129.5,129.49,0.05929145]
[1744549543272,7.77580379,129.51,129.49,0.05929145]
[1744549543971,0.05210379,129.51,129.49,0.05929145]
[1744549544568,7.7241,129.5,129.49,0.05929145]
[1744549548172,7.77600379,129.51,129.49,0.05929145]
[1744549549370,7.77600379,129.51,129.49,7.78389145]
[1744549550375,0.05210379,129.51,129.49,7.78389145]
[1744549551477,7.77570379,129.51,129.49,0.05929145]
[1744549552174,0.05210379,129.51,129.49,7.78399145]
[1744549552477,0.05210379,129.51,129.49,0.05929145]
[1744549552678,0.05210379,129.51,129.49,7.78369145]
[1744549552877,0.05210379,129.51,129.49,0.05929145]
[1744549553579,7.77590379,129.51,129.49,0.05929145]
[1744549553878,0.05210379,129.51,129.49,0.05929145]
[1744549554178,0.05210379,129.51,129.5,7.7241]
[1744549554781,0.05210379,129.51,129.49,7.78379145]
[1744549556080,7.77570379,129.51,129.49,0.05929145]
[1744549556982,0.05210379,129.51,129.49,7.78399145]
[1744549557981,0.05210379,129.51,129.49,0.05929145]
[1744549558480,7.7241,129.5,129.49,0.05929145]
[1744549558885,0.05210379,129.51,129.49,0.05929145]
[1744549559179,7.7241,129.5,129.49,0.05929145]
[1744549559581,0.05210379,129.51,129.49,0.05929145]
[1744549560376,0.05210379,129.51,129.49,7.78359145]
[1744549561286,0.05210379,129.51,129.5,7.7241]
[1744549561583,7.77580379,129.51,129.49,0.05929145]
[1744549561773,0.05210379,129.51,129.49,0.05929145]
[1744549563082,7.7241,129.5,129.49,0.05929145]
[1744549563284,0.05210379,129.51,129.49,0.05929145]
[1744549564378,7.77590379,129.51,129.49,0.05929145]
[1744549564780,0.05210379,129.51,129.49,0.05929145]
[1744549564986,7.7241,129.5,129.49,0.05929145]
[1744549568283,0.05210379,129.51,129.42,30.12]
[1744549568486,30.12,129.5,129.41,4.1342]
[1744549568698,30.12,129.5,129.4,7.7298]
[1744549568883,7.7285,129.43,129.4,7.7298]
[1744549569496,7.77784925,129.43,129.4,7.7872331]
[1744549570496,7.729,129.42,129.4,7.7872331]
[1744549570697,7.729,129.42,129.4,0.0574331]
[1744549570998,7.7295,129.41,129.4,0.0574331]
[1744549571797,0.04934925,129.43,129.4,0.0574331]
[1744549572301,975.9824,129.51,129.4,0.0574331]
[1744549572496,30.24,129.5,129.4,0.0574331]
[1744549572796,7.7268,129.46,129.42,7.7284]
[1744549572994,30.24,129.5,129.39,30.24]
[1744549573698,0.05721439,129.46,129.43,0.05719693]
[1744549573898,30.24,129.5,129.43,30.29719693]
[1744549574098,30.24,129.5,129.44,4.0952]
[1744549574595,30.24,129.5,129.48,7.725]
[1744549574901,7.7225,129.53,129.44,4.0952]
[1744549575200,0.05188973,129.5,129.48,0.05293146]
[1744549576202,0.05188973,129.5,129.49,7.7247]
[1744549576803,7.7226,129.53,129.5,7.724]
[1744549577299,30.24,129.54,129.46,30.24]
[1744549577700,7.7224,129.53,129.46,30.24]
[1744549578003,0.05038952,129.51,129.48,0.05522244]
[1744549578200,0.05038952,129.51,129.49,7.7247]
[1744549578403,0.05038952,129.51,129.48,0.05522244]
[1744549578906,0.05038952,129.51,129.5,7.7241]
[1744549579406,37.962,129.54,129.51,7.7231]
[1744549579600,30.24,129.54,129.47,1.9946]
[1744549580106,30.24,129.54,129.51,7.723]
[1744549580605,30.28981649,129.54,129.51,7.77615398]
[1744549580806,30.28981649,129.54,129.51,0.05315398]
[1744549581309,7.7228,129.53,129.51,0.05315398]
[1744549581606,30.28981649,129.54,129.51,0.05315398]
[1744549581807,7.7229,129.52,129.51,0.05315398]
[1744549583702,30.28981649,129.54,129.44,4.0952]
[1744549583907,30.24,129.53,129.44,4.0952]
[1744549584107,30.24,129.52,129.44,4.0952]
[1744549584802,7.7257,129.48,129.47,0.0535355]
[1744549585902,0.0556345,129.49,129.47,0.0535355]
[1744549586407,7.7803345,129.49,129.47,0.0535355]
[1744549587004,7.7803345,129.49,129.47,7.7794355]
[1744549587403,0.0556345,129.49,129.47,7.7794355]
[1744549587808,0.0556345,129.49,129.47,0.0535355]
[1744549588310,7.7806345,129.49,129.47,0.0535355]
[1744549588507,0.0556345,129.49,129.47,0.0535355]
[1744549588913,37.9653,129.48,129.47,0.0535355]
[1744549589110,30.24,129.48,129.4,32.2643]
[1744549589307,30.24,129.48,129.4,2.0243]
[1744549589507,7.7292,129.42,129.4,2.0243]
[1744549589707,7.7292,129.42,129.4,9.7543]
[1744549590212,7.78438929,129.42,129.4,9.81245248]
[1744549590913,0.05518929,129.42,129.4,9.81245248]
[1744549591211,0.05518929,129.42,129.4,9.81255248]
[1744549591810,0.05518929,129.42,129.41,7.7295]
[1744549592112,7.7261,129.47,129.4,2.08245248]
[1744549592314,30.24,129.49,129.4,32.2643]
[1744549592510,30.24,129.49,129.45,7.7268]
[1744549592710,37.965,129.49,129.4,32.2643]
[1744549593110,30.24,129.49,129.45,7.7267]
[1744549593311,0.05765322,129.46,129.45,7.7267]
[1744549593716,30.24,129.49,129.46,7.7265]
[1744549594117,30.24,129.49,129.44,0.05739521]
[1744549594118,7.7253,129.48,129.44,0.05739521]
[1744549594416,30.24,129.49,129.44,0.05739521]
[1744549594417,30.24,129.52,129.44,0.05739521]
[1744549594611,30.24,129.52,129.43,30.24]
[1744549594813,0.05659515,129.49,129.47,0.0540634]
[1744549595516,0.05659515,129.49,129.47,7.7799634]
[1744549596919,0.05659515,129.49,129.47,0.0540634]
[1744549597721,30.24,129.52,129.47,0.0540634]
[1744549598015,30.24,129.55,129.47,2.0601634]
[1744549598217,30.24,129.55,129.47,2.0061]
[1744549598815,0.05914846,129.52,129.5,0.04930842]
[1744549599017,0.05914846,129.52,129.51,7.7232]
[1744549599222,30.08,129.58,129.5,0.04930842]
[1744549599520,30.08,129.58,129.49,30.24]
[1744549600023,37.7997,129.58,129.55,7.721]
[1744549600323,0.05649634,129.55,129.52,0.05029276]
[1744549600519,7.7179,129.61,129.57,7.7196]
[1744549601117,30.08,129.62,129.55,30.08]
[1744549601317,101.9529829,129.66,129.56,4.1748]
[1744549601720,0.05202393,129.62,129.6,0.05149815]
[1744549603521,0.05202393,129.62,129.6,7.76959815]
[1744549604124,0.05202393,129.62,129.6,0.05149815]
[1744549604326,30.06,129.61,129.6,0.05149815]
[1744549604524,30.06,129.61,129.53,2.0148]
[1744549604725,7.719,129.59,129.53,2.0148]
[1744549604927,30.06,129.61,129.53,2.0148]
[1744549605226,7.7179,129.61,129.56,7.7201]
[1744549605524,7.7179,129.61,129.56,37.7801]
[1744549605727,0.04901277,129.6,129.57,0.05405855]
[1744549607220,7.76721277,129.6,129.57,0.05405855]
[1744549607525,0.04901277,129.6,129.57,0.05405855]
[1744549607720,7.7194,129.58,129.57,0.05405855]
[1744549607926,37.7794,129.58,129.57,0.05405855]
[1744549608126,37.78,129.58,129.52,2.075]
[1744549608320,7.723,129.52,129.5,30.06]
[1744549608520,30.06,129.58,129.5,30.06]
[1744549608716,7.721,129.56,129.5,30.06]
[1744549609228,0.05600375,129.54,129.52,7.77917187]
[1744549609428,0.05600375,129.54,129.52,0.05657187]
[1744549610427,7.7223,129.53,129.52,0.05657187]
[1744549613334,7.77800375,129.54,129.52,0.05657187]
[1744549614232,7.7223,129.53,129.52,0.05657187]
[1744549615934,7.77800375,129.54,129.52,0.05657187]
[1744549616637,7.7223,129.53,129.52,0.05657187]
[1744549620637,0.05600375,129.54,129.52,0.05657187]
[1744549620836,0.05600375,129.54,129.52,7.77917187]
[1744549622546,0.05600375,129.54,129.52,0.05657187]
[1744549624135,30.06,129.58,129.52,0.05657187]
[1744549624339,30.06,129.58,129.53,30.06]
[1744549624542,641.52,129.61,129.54,2.0905]
[1744549624740,641.52,129.61,129.53,30.06]
[1744549624936,7.721,129.56,129.53,37.7821]
[1744549625147,30.06,129.58,129.49,30.06]
[1744549625347,0.05415185,129.56,129.53,0.05517915]
[1744549625642,7.7221,129.54,129.53,0.05517915]
[1744549626043,0.05415185,129.56,129.53,0.05517915]
[1744549626244,7.7214,129.55,129.53,0.05517915]
[1744549626845,7.77495185,129.56,129.53,7.77747915]
[1744549627344,0.05415185,129.56,129.53,0.05517915]
[1744549627544,0.05415185,129.56,129.54,7.7213]
[1744549629344,7.77475185,129.56,129.54,7.7213]
[1744549629548,0.05415185,129.56,129.55,7.7211]
[1744549630145,0.05415185,129.56,129.53,0.05517915]
[1744549630345,0.05415185,129.56,129.48,2.1444]
[1744549630346,29.96,129.55,129.48,2.1444]
[1744549630541,7.7239,129.51,129.48,2.1444]
[1744549630741,29.96,129.55,129.47,2.0344]
[1744549631243,29.96,129.55,129.47,31.9944]
[1744549631546,0.05053488,129.52,129.5,0.05896746]
[1744549632748,0.05053488,129.52,129.51,7.7235]
[1744549633051,29.96,129.58,129.5,30.01896746]
[1744549633340,29.96,129.58,129.54,7.7216]
[1744549633547,641.42,129.61,129.51,2.1626]
[1744549633847,641.42,129.61,129.53,29.96]
[1744549634047,0.05014916,129.57,129.55,0.05841379]
[1744549634848,0.05014916,129.57,129.56,7.7205]
[1744549635047,0.05014916,129.57,129.55,0.05841379]
[1744549635441,7.7205,129.56,129.55,0.05841379]
[1744549637749,0.05014916,129.57,129.55,0.05841379]
[1744549638842,7.77024916,129.57,129.55,0.05841379]
[1744549639045,0.05014916,129.57,129.55,0.05841379]
[1744549640849,0.3476,129.65,129.55,0.05841379]
[1744549641149,29.96,129.66,129.56,29.96]
[1744549641349,29.96,129.66,129.6,7.7178]
[1744549641545,29.96,129.66,129.57,34.0594]
[1744549642051,0.05715197,129.63,129.61,7.7176]
[1744549642247,0.05715197,129.63,129.6,0.05536667]
[1744549643052,0.05715197,129.63,129.62,7.717]
[1744549643454,0.05715197,129.63,129.6,30.01536667]
[1744549643654,0.05715197,129.63,129.61,7.7176]
[1744549643855,0.05715197,129.63,129.6,30.01536667]
[1744549644051,179.682457,129.72,129.6,30.01536667]
[1744549644253,29.96,129.73,129.61,2.0979]
[1744549644554,7.7125,129.7,129.66,7.7142]
[1744549645156,0.05566194,129.69,129.67,0.05542842]
[1744549645356,7.76856194,129.69,129.67,0.05542842]
[1744549648568,7.7134,129.68,129.67,0.05542842]
[1744549649163,0.05566194,129.69,129.6,7.7178]
[1744549649465,29.94,129.68,129.6,7.7178]
[1744549649666,7.7163,129.64,129.6,7.7178]
[1744549649863,29.94,129.66,129.59,7.7186]
[1744549650261,0.05856073,129.64,129.61,0.05168477]
[1744549650658,7.7164,129.63,129.61,0.05168477]
[1744549650859,0.05856073,129.64,129.61,0.05168477]
[1744549651061,7.717,129.62,129.61,0.05168477]
[1744549651260,29.94,129.63,129.55,29.94]
[1744549651663,7.7178,129.61,129.58,7.7192]
[1744549651870,29.94,129.63,129.55,29.94]
[1744549652373,29.94,129.63,129.58,0.05894368]
[1744549652569,0.05170156,129.6,129.58,0.05894368]
[1744549652870,0.05170156,129.6,129.59,7.7186]
[1744549660577,0.05170156,129.6,129.58,29.99894368]
[1744549660782,0.05170156,129.6,129.58,0.05894368]
[1744549661779,0.05170156,129.6,129.59,7.7188]
[1744549662183,0.05170156,129.6,129.58,7.77794368]
[1744549663783,0.05170156,129.6,129.59,7.7188]
[1744549666586,7.7159,129.64,129.61,7.7174]
[1744549667783,7.77469861,129.64,129.61,7.77471874]
[1744549668194,0.05879861,129.64,129.61,0.05731874]
[1744549668783,7.77479861,129.64,129.61,7.77451874]
[1744549668988,0.05879861,129.64,129.61,0.05731874]
[1744549669593,7.7167,129.63,129.61,0.05731874]
[1744549671593,7.7167,129.63,129.61,7.77481874]
[1744549671793,7.77479861,129.64,129.61,7.77481874]
[1744549672097,0.05879861,129.64,129.61,0.05731874]
[1744549672296,7.7168,129.63,129.61,0.05731874]
[1744549673700,7.717,129.62,129.61,0.05731874]
[1744549676202,7.7167,129.63,129.61,0.05731874]
[1744549676597,7.7167,129.63,129.61,7.77461874]
[1744549676998,7.7167,129.63,129.61,0.05731874]
[1744549677302,0.05879861,129.64,129.61,0.05731874]
[1744549677692,7.717,129.62,129.61,0.05731874]
[1744549684105,37.6167,129.63,129.61,0.05731874]
[1744549685097,7.717,129.62,129.61,0.05731874]
[1744549685498,29.9,129.63,129.62,7.717]
[1744549685704,0.05879861,129.64,129.61,0.05731874]
[1744549686007,7.717,129.62,129.61,0.05731874]
[1744549686406,0.05879861,129.64,129.61,0.05731874]
[1744549686703,0.05879861,129.64,129.62,7.7165]
[1744549686909,0.05879861,129.64,129.61,0.05731874]
[1744549687203,0.05879861,129.64,129.63,7.7164]
[1744549688709,29.9,129.69,129.62,29.9]
[1744549689104,110.54699825,129.71,129.62,29.9]
[1744549689607,37.6115,129.72,129.62,29.9]
[1744549689806,0.05635165,129.68,129.67,7.714]
[1744549690004,37.6115,129.72,129.66,29.9]
[1744549690207,0.05628447,129.69,129.66,29.9518211]
[1744549690709,0.05628447,129.69,129.68,7.7131]
[1744549690910,0.05628447,129.69,129.66,29.9518211]
[1744549691312,0.05628447,129.69,129.67,7.714]
[1744549691610,0.05628447,129.69,129.66,29.9518211]
[1744549691907,7.76918447,129.69,129.66,37.6658211]
[1744549693712,7.76918447,129.69,129.67,7.714]
[1744549694213,0.05628447,129.69,129.67,7.714]
[1744549695215,7.76918447,129.69,129.67,7.714]
[1744549696115,0.05628447,129.69,129.67,7.714]
[1744549696414,0.05628447,129.69,129.66,37.6661211]
[1744549696616,7.76908447,129.69,129.66,37.6661211]
[1744549696932,0.05628447,129.69,129.67,7.714]
[1744549697619,0.05628447,129.69,129.66,29.9518211]
[1744549697821,29.91628447,129.69,129.66,0.0518211]
[1744549698316,37.63628447,129.69,129.6,4.0271]
[1744549698521,29.86,129.69,129.6,1.9687]
[1744549698721,0.4487,129.68,129.57,29.86]
[1744549698922,0.4487,129.68,129.59,7.7184]
[1744549699118,0.4487,129.68,129.57,29.86]
[1744549699424,7.7164,129.63,129.61,0.05814856]
[1744549699820,0.05668095,129.64,129.61,0.05814856]
[1744549700021,0.05668095,129.64,129.62,7.7166]
[1744549700323,0.05668095,129.64,129.61,0.05814856]
[1744549700526,7.77248095,129.64,129.61,7.77544856]
[1744549705027,7.7164,129.63,129.61,7.77544856]
[1744549705227,0.05668095,129.64,129.61,0.05814856]
[1744549705424,7.717,129.62,129.61,0.05814856]
[1744549705719,0.05668095,129.64,129.61,0.05814856]
[1744549706126,7.7164,129.63,129.61,0.05814856]
[1744549706926,7.717,129.62,129.61,0.05814856]
[1744549710032,37.5766,129.63,129.61,0.05814856]
[1744549710328,29.86,129.63,129.61,7.77544856]
[1744549710528,7.77278095,129.64,129.61,7.77544856]
[1744549713330,7.7164,129.63,129.61,7.77544856]
[1744549714031,7.7164,129.63,129.61,0.05814856]
[1744549714531,7.7164,129.63,129.61,7.77564856]
[1744549714728,7.77278095,129.64,129.61,7.77564856]
[1744549721037,0.05668095,129.64,129.62,7.7169]
[1744549723045,7.77248095,129.64,129.62,7.7169]
[1744549727546,7.7164,129.63,129.61,0.05814856]
[1744549727741,0.05668095,129.64,129.61,0.05814856]
[1744549728145,0.05668095,129.64,129.62,7.7167]
[1744549728645,0.05668095,129.64,129.61,0.05814856]
[1744549728846,29.86,129.66,129.61,0.05814856]
[1744549729348,29.86,129.66,129.61,29.71814856]
[1744549730046,0.0568134,129.65,129.61,29.71814856]
[1744549730949,0.0568134,129.65,129.63,7.7158]
[1744549731348,0.0568134,129.65,129.61,29.71814856]
[1744549732151,0.0568134,129.65,129.64,7.7158]
[1744549734645,29.64,129.69,129.62,4.1487]
[1744549734855,610.98,129.71,129.62,4.1487]
[1744549734856,7.712,129.71,129.63,31.7765]
[1744549735342,29.64,129.72,129.63,31.7765]
[1744549735953,0.0554358,129.69,129.66,0.05438359]
[1744549736254,101.5129829,129.75,129.67,29.64]
[1744549736552,101.5129829,129.75,129.68,31.7138]
[1744549736744,101.5129829,129.75,129.68,2.0738]
[1744549737145,7.7105,129.73,129.7,7.7119]
[1744549737343,7.76931739,129.73,129.7,7.76062073]
[1744549738347,0.05881739,129.73,129.7,7.76062073]
[1744549738652,0.05881739,129.73,129.7,0.04872073]
[1744549739351,7.7116,129.71,129.7,0.04872073]
[1744549739653,7.7116,129.71,129.68,2.0738]
[1744549739654,29.64,129.72,129.64,31.6685]
[1744549739954,7.7117,129.71,129.68,7.7131]
[1744549740154,29.64,129.72,129.64,31.6685]
[1744549740353,7.7101,129.74,129.71,7.7116]
[1744549740859,0.05335136,129.74,129.71,0.05375602]
[1744549741060,0.05335136,129.74,129.72,7.7107]
[1744549741656,0.05335136,129.74,129.73,7.7104]
[1744549743255,0.05335136,129.74,129.72,7.7108]
[1744549743561,0.05335136,129.74,129.71,0.05375602]
[1744549743758,0.05335136,129.74,129.72,7.7107]
[1744549743962,0.05335136,129.74,129.71,0.05375602]
[1744549744263,0.05335136,129.74,129.73,7.7104]
[1744549745563,0.05335136,129.74,129.72,7.7107]
[1744549747266,0.05335136,129.74,129.73,7.7104]
[1744549747666,0.05335136,129.74,129.71,0.05375602]
[1744549748264,7.7107,129.73,129.71,0.05375602]
[1744549749361,7.711,129.72,129.71,0.05375602]
[1744549750467,0.05335136,129.74,129.71,0.05375602]
[1744549750867,0.05335136,129.74,129.72,7.7106]
[1744549751470,7.76325136,129.74,129.71,7.76505602]
[1744549752470,0.05335136,129.74,129.72,7.711]
[1744549752970,0.05335136,129.74,129.71,0.05375602]
[1744549753269,7.76345136,129.74,129.71,0.05375602]
[1744549753459,0.05335136,129.74,129.71,0.05375602]
[1744549753663,0.05335136,129.74,129.72,7.7107]
[1744549754669,7.76325136,129.74,129.71,7.76505602]
[1744549755470,7.76325136,129.74,129.72,7.7109]
[1744549755669,0.05335136,129.74,129.72,7.7109]
[1744549758573,7.76325136,129.74,129.72,7.7109]
[1744549759971,7.76325136,129.74,129.71,7.76505602]
[1744549760172,0.05335136,129.74,129.71,0.05375602]
[1744549760671,7.7132,129.69,129.65,4.0159]
[1744549761073,7.7132,129.69,129.66,7.7142]